Cogmind - Beta 13 @@@ ROGUE MODE // 2024.04.28 @ 22:02:28 Player: tartine Result: Destroyed by S-43 Plague with Heavy Machine Gun Performance ------------- Evolutions (9) 4500 Regions Visited (17) 3400 Robots Destroyed (79) 395 Value Destroyed (2339) 2339 Prototype IDs (11) 220 Alien Tech Used (0) 0 Bonus (1580) 1580 TOTAL SCORE: 12434 Bonus ------- High Alert Combat Kills 80 Entered DSFs 500 Met Warlord at Base 500 MAIN.C Attacked Warlord 500 Cogmind --------- Core Integrity 0/1600 Matter 251/300 Energy 98/100 System Corruption 9% Temperature Cool (0) Movement Core (50) Location -1/Access Parts ------- > --- POWER (2) -------- (None) > --- PROPULSION (8) --- (None) > --- UTILITY (12) ----- (None) > --- WEAPON (3) ------- (None) > --- INVENTORY (5) ---- (None) Peak State ------------ > --- POWER ------------ Micro Antimatter Reactor Light Quantum Reactor > --- PROPULSION ------- Field Propulsion Array Field Propulsion Array Field Propulsion Array Q-thruster Q-thruster > --- UTILITY ---------- Advanced Power Amplifier Advanced Power Amplifier Experimental Power Amplifier Advanced Visual Processing Unit Long-range Sensor Array Advanced Signal Interpreter Improved Melee Analysis Suite Improved Melee Analysis Suite Improved Actuator Array Improved Transmission Jammer Advanced Reaction Control System Advanced System Restoration Module > --- WEAPON ----------- Chainsword Plasma Lance > --- INVENTORY -------- Nuclear Pulse Thruster Q-thruster Long-range Sensor Array Micro-nuke Launcher Fusion Bomb Launcher [Rating: 160] Favorites ----------- Power Light Nuclear Core Engine Makeshift Power Source Power Core Light Nuclear Core Reactor Micro Antimatter Reactor Propulsion Field Propulsion Array Leg Aluminum Leg Hover Unit Linear Gravjet Flight Unit Field Propulsion Array Utility Advanced Sensor Array Device Advanced Sensor Array Storage Small Storage Unit Processor Advanced Signal Interpreter Hackware Hacking Suite Protection Hardened Medium Armor Plating Weapon Chainsword Energy Gun Particle Gun Energy Cannon Heavy Particle Cannon Launcher Rocket Launcher Special Weapon Molecular Deconstructor Slashing Weapon Chainsword Piercing Weapon Plasma Lance Build | -11 -10 -10 -10 -9 -8 -7 -7 -6 -5 -5 -5 -5 -4 -4 -3 -2 -1 ------- Run | Yrd Mat Min Exi Min Mat Fac DSF Fac Fac Upp Upp War Pro Fac Res Res Acc Slots Evolved 18 | . . . . . 4 2 . 2 2 . . . . 2 2 2 2 Power 1 | . . . . . . . . . . . . . . . 1 . . Propulsion 6 | . . . . . . 2 . 2 2 . . . . . . . . Utility 10 | . . . . . 4 . . . . . . . . 2 1 2 1 Weapon 1 | . . . . . . . . . . . . . . . . . 1 Parts Attached 145 | 6 8 1 . 11 21 . . 2 10 5 9 12 7 14 5 20 14 Power 23 | 1 2 1 . . 4 . . . 1 1 3 2 1 2 2 2 1 Engine 8 | 1 2 . . . 2 . . . . 1 1 . 1 . . . . Core 7 | . . 1 . . 2 . . . 1 . 2 1 . . . . . Reactor 8 | . . . . . . . . . . . . 1 . 2 2 2 1 Propulsion 34 | 2 1 . . 3 3 . . . 3 . 4 7 1 4 . 4 2 Treads . | . . . . . . . . . . . . . . . . . . Leg 7 | 2 1 . . 3 1 . . . . . . . . . . . . Wheel . | . . . . . . . . . . . . . . . . . . Hover 1 | . . . . . . . . . 1 . . . . . . . . Flight 26 | . . . . . 2 . . . 2 . 4 7 1 4 . 4 2 Utility 51 | 1 1 . . . 11 . . 2 4 3 1 . 2 8 3 8 7 Device 33 | . . . . . 5 . . 2 3 2 . . 1 5 3 6 6 Storage 1 | 1 . . . . . . . . . . . . . . . . . Processor 9 | . 1 . . . 1 . . . 1 1 1 . . 2 . 2 . Hackware 1 | . . . . . . . . . . . . . . . . . 1 Protection 7 | . . . . . 5 . . . . . . . 1 1 . . . Artifact . | . . . . . . . . . . . . . . . . . . Weapon 37 | 2 4 . . 8 3 . . . 2 1 1 3 3 . . 6 4 Energy Gun 10 | 2 3 . . 4 1 . . . . . . . . . . . . Energy Cannon 1 | . . . . . 1 . . . . . . . . . . . . Ballistic Gun . | . . . . . . . . . . . . . . . . . . Ballistic Cannon . | . . . . . . . . . . . . . . . . . . Launcher 11 | . 1 . . 4 1 . . . . . . 1 . . . 1 3 Special Weapon 2 | . . . . . . . . . . . . . 1 . . 1 . Impact Weapon . | . . . . . . . . . . . . . . . . . . Slashing Weapon 11 | . . . . . . . . . 2 1 1 2 2 . . 2 1 Piercing Weapon 2 | . . . . . . . . . . . . . . . . 2 . Special Melee Weapon . | . . . . . . . . . . . . . . . . . . Unidentified Prototypes 9 | . . . . . . . . . 2 . . 1 1 . 1 3 1 Parts Lost 61 | . 3 . . 3 8 . . 1 3 . 5 . 6 1 1 6 24 Power 7 | . 1 . . . 1 . . . 1 . 1 . . . . 1 2 Propulsion 23 | . 1 . . 2 2 . . 1 1 . 3 . 4 1 . 1 7 Utility 20 | . . . . . 2 . . . 1 . 1 . 1 . 1 4 10 Weapon 11 | . 1 . . 1 3 . . . . . . . 1 . . . 5 Highest Loss Streak 10 | . 3 . . 2 4 . . 1 3 . 5 . 2 1 1 3 10 To Critical Strikes 2 | . . . . . . . . . . . . . . . . . 2 Average Slot Usage (%) 79 | . 86 100 100 99 92 . 53 41 33 57 59 66 81 85 79 83 53 Engine 2 | . 12 10 . . . . 7 6 1 4 3 4 . 1 . . . Core 3 | . . 3 14 14 7 . . . 1 . 1 . . . . . . Reactor 2 | . . . . . . . . . . . . . 4 3 9 7 3 Leg 9 | . 27 28 28 27 16 . . . . . . . . . . . . Flight 12 | . . . . . 1 . 15 12 7 11 12 19 41 29 19 20 12 Device 13 | . . . . . 23 . 15 13 9 15 12 11 9 21 22 32 17 Storage 4 | . 14 14 14 14 8 . . . . . . . . . . . . Processor 12 | . 2 14 14 14 4 . 7 6 7 15 17 17 13 12 14 13 10 Protection 1 | . . . . . 13 . 7 1 . . . . . 5 3 . . Energy Gun 6 | . 26 28 28 16 8 . . . . . . . . . . . . Launcher 1 | . 1 . . 11 . . . . . . . . . . . . . Slashing Weapon 4 | . . . . . . . . . 3 8 8 10 8 10 9 7 3 Naked Turns 23 | . . . . . 5 . . . . . . . . . . . 18 Heaviest Build 62 | 11 12 14 14 18 36 8 8 10 17 12 15 32 32 37 50 62 57 Greatest Support 61 | 20 20 20 20 20 20 8 8 8 13 22 33 37 37 50 50 61 61 Greatest Overweight (x) 4 | . . . . 1 2 . . 1 1 1 1 . . . . 1 4 Average Overweight (x) . | . . . . . . . . . . . . . . . . . . Largest Inventory Capacity 8 | 8 8 8 8 8 8 5 5 5 5 5 5 5 5 5 5 5 5 Average Capacity 6 | 7 8 8 8 8 7 5 5 5 5 5 5 5 5 5 5 5 5 Most Carried 8 | 1 7 7 6 8 8 . . 3 5 5 5 5 5 5 5 5 5 Average Carried 5 | . 4 5 6 7 6 . . 1 4 3 4 4 4 2 4 4 3 Final Capacity 8 | 8 8 8 8 8 5 5 5 5 5 5 5 5 5 5 5 5 5 Final Carried 7 | 1 5 6 6 7 . . . 3 5 4 5 5 1 5 5 5 . Class Distribution -------------------- 34% | Mutant 18% | Ninja 14% | Scavenger-Mutant 7% | Derelict-Sprinter 7% | Scavenger-Sprinter 7% | Sprinter 5% | Scavenger-Ninja Dominant Class ---------------- Mutant | -10/Materials Mutant | -10/Mines Mutant | -10/Exiles Mutant | -9/Mines Scavenger-Mutant | -8/Materials Scavenger-Mutant | -7/Factory Scavenger-Mutant | -7/DSF Scout | -6/Factory Mutant | -5/Factory Mutant | -5/Upper Caves Sprinter | -5/Upper Caves Derelict-Sprinter | -5/Warlord Scavenger-Sprinter | -4/Proximity Caves Scavenger-Ninja | -4/Factory Ninja | -3/Research Ninja | -2/Research Scavenger-Sprinter | -1/Access Resources | -11 -10 -10 -10 -9 -8 -7 -7 -6 -5 -5 -5 -5 -4 -4 -3 -2 -1 ----------- Run | Yrd Mat Min Exi Min Mat Fac DSF Fac Fac Upp Upp War Pro Fac Res Res Acc Matter Collected 2121 | 260 107 61 . 293 220 . . . 13 341 85 129 5 200 35 267 105 Remotely . | . . . . . . . . . . . . . . . . . . Salvage Created 2905 | 138 399 47 . 385 319 . . . 13 296 268 . . 299 35 428 278 Parts 158 | 9 22 4 . 30 25 . . . 2 2 15 . . 11 3 19 16 Haulers Intercepted 1 | . . . . . . . . . . . . . . 1 . . . Recyclers Shooed 1 | . 1 . . . . . . . . . . . . . . . . Parts Field Recycled . | . . . . . . . . . . . . . . . . . . Retrieved Matter . | . . . . . . . . . . . . . . . . . . Parts Self-Destructed 7 | . . . . . . . . . . 1 6 . . . . . . Prevented . | . . . . . . . . . . . . . . . . . . Kills | -11 -10 -10 -10 -9 -8 -7 -7 -6 -5 -5 -5 -5 -4 -4 -3 -2 -1 ------- Run | Yrd Mat Min Exi Min Mat Fac DSF Fac Fac Upp Upp War Pro Fac Res Res Acc Combat Hostiles Destroyed 49 | . 6 2 . 13 12 . . . . . 5 . . . . 5 6 Melee 10 | . . . . . . . . . . . 4 . . . . 5 1 Guns 11 | . 4 2 . 2 3 . . . . . . . . . . . . Cannons 4 | . . . . . 4 . . . . . . . . . . . . AOE 23 | . 2 . . 11 5 . . . . . . . . . . . 5 Classes Destroyed 11 | 2 3 1 . 1 . . . . . . 1 . . 2 . . 1 Worker 8 | . 2 . . 3 . . . . 1 . . . . 1 . 1 . Tunneler 8 | 5 . . . 2 . . . . . . . . . . . . 1 Hauler 1 | . . . . . . . . . . . . . . 1 . . . Recycler 3 | 1 1 . . . . . . . . . . . . 1 . . . Operator 1 | . . . . . . . . . . . . . . 1 . . . Watcher 9 | . 3 . . . 1 . . . . . . . . 1 1 2 1 Swarmer 21 | . . 1 . 3 6 . . . . . 5 . . . . 2 4 Grunt 22 | . 6 1 . 8 5 . . . . . . . . . . 2 . Sentry 5 | . . . . 2 1 . . . . . . . . . . 1 1 Programmer 1 | . . . . . . . . . . . . . . . . . 1 Decomposer 3 | . . . . . . . . . . 3 . . . . . . . Packrat 3 | . . . . . . . . . . 3 . . . . . . . Samaritan 3 | . . . . . . . . . . . 3 . . . . . . Best Kill Streak 7 | 5 5 1 . 4 7 . . . 1 . 2 . . 1 1 2 5 Combat Bots Only 6 | . 3 1 . 3 6 . . . . . 2 . . . . 2 5 Max Kills in Single Turn 3 | 1 2 1 . 3 1 . . . 1 1 1 . . 1 1 1 3 Gunslinging . | . . . . . . . . . . . . . . . . . . Exploded 3 | . 1 . . 3 1 . . . . . . . . . . . 3 Melee 1 | . . . . . . . . . . . 1 . . . . 1 1 Uniques/NPCs Destroyed . | . . . . . . . . . . . . . . . . . . Combat | -11 -10 -10 -10 -9 -8 -7 -7 -6 -5 -5 -5 -5 -4 -4 -3 -2 -1 -------- Run | Yrd Mat Min Exi Min Mat Fac DSF Fac Fac Upp Upp War Pro Fac Res Res Acc Hostile Shots Fired 634 | . 55 15 . 28 75 . 1 29 . 3 40 . 16 . 18 59 295 Missed 284 | . 8 4 . 9 13 . . 17 . 3 15 . 7 . 11 37 160 Damage Taken 7580 | . 555 136 . 437 1347 . 53 175 87 . 390 62 196 82 174 712 3174 Core 2830 | . 94 26 . 104 265 . 53 141 36 . 201 28 50 . . 230 1602 Absorbed by Shields . | . . . . . . . . . . . . . . . . . . Redirected to Shielding 29 | . . . . . 29 . . . . . . . . . . . . Regen/Repaired (Parts) 24 | . . . . . . . . . . . . 24 . . . . . Core Remaining (%) 76 | 100 . . . 10 51 . 92 83 . . . . 68 100 100 84 . Volleys Fired 149 | 15 39 11 . 32 40 . . . . . . . 2 . . 3 7 Largest 2 | 2 2 2 . 2 2 . . . . . . . 1 . . 1 1 Hottest 140 | 90 105 105 . 130 140 . . . . . . . . . . 52 52 Shots Fired 248 | 30 67 22 . 47 70 . . . . . . . 2 . . 3 7 Gun 161 | 30 64 22 . 21 24 . . . . . . . . . . . . Cannon 34 | . . . . . 34 . . . . . . . . . . . . Launcher 51 | . 3 . . 26 12 . . . . . . . . . . 3 7 Special 2 | . . . . . . . . . . . . . 2 . . . . Kinetic . | . . . . . . . . . . . . . . . . . . Thermal 195 | 30 64 22 . 21 58 . . . . . . . . . . . . Explosive 51 | . 3 . . 26 12 . . . . . . . . . . 3 7 Electromagnetic . | . . . . . . . . . . . . . . . . . . Robot Hit Streak 13 | 7 4 13 . 5 8 . . . . . . . . . . . . Robot Miss Streak 9 | 4 3 2 . 5 8 . . . . . . . . . . . 9 Penetration Max . | . . . . . . . . . . . . . . . . . . Secondary Targets . | . . . . . . . . . . . . . . . . . . Shots Hit Robots 203 | 16 40 17 . 19 32 . . . 1 10 10 1 . 8 5 30 14 Core Hits 114 | 7 20 5 . 26 21 . . . 1 2 6 . . 5 1 11 9 Critical Kills . | . . . . . . . . . . . . . . . . . . Critical Parts Destroyed . | . . . . . . . . . . . . . . . . . . Critical Strikes 10 | 2 2 . . . 1 . . . . . 1 . . . 1 3 . Burn 5 | 2 2 . . . 1 . . . . . . . . . . . . Sever 5 | . . . . . . . . . . . 1 . . . 1 3 . Melee Attacks 250 | . . . . . . . . . 1 15 29 2 8 21 36 95 43 Impact . | . . . . . . . . . . . . . . . . . . Slashing 218 | . . . . . . . . . 1 15 29 2 8 21 36 95 11 Piercing 32 | . . . . . . . . . . . . . . . . . 32 Sneak Attacks 17 | . . . . . . . . . 1 5 4 . . 4 . 1 2 Combat Hostiles . | . . . . . . . . . . . . . . . . . . Follow-up Attacks 16 | . . . . . . . . . . . 2 . . 2 2 7 3 Damage Inflicted 8204 | 211 699 223 . 1275 1010 . . . 66 586 498 35 . 523 238 1315 1525 Guns 1329 | 211 505 223 . 172 218 . . . . . . . . . . . . Cannons 375 | . . . . . 375 . . . . . . . . . . . . Explosions 2383 | . 194 . . 1100 417 . . . . . . . . . . . 672 Melee 4114 | . . . . . . . . . 66 586 498 35 . 523 238 1315 853 Ramming 3 | . . . . 3 . . . . . . . . . . . . . Kinetic . | . . . . . . . . . . . . . . . . . . Thermal 1704 | 211 505 223 . 172 593 . . . . . . . . . . . . Explosive 2383 | . 194 . . 1100 417 . . . . . . . . . . . 672 Electromagnetic . | . . . . . . . . . . . . . . . . . . Impact . | . . . . . . . . . . . . . . . . . . Slashing 3383 | . . . . . . . . . 66 586 498 35 . 523 238 1315 122 Piercing 731 | . . . . . . . . . . . . . . . . . 731 Highest Corruption 10 | . . . . . 10 . . . 5 5 5 5 1 . 1 4 9 Average Corruption 4 | . . . . . 6 . . . 5 5 5 5 1 . 1 2 4 Corruption Purged 5 | . . . . . . . . . . . . . . . . 4 1 Corruption Blocked 14 | . . . . . . . . . . . . . . . . 14 . Effects 41 | . . . . . 2 . . . 5 13 12 1 . . . 4 4 Message Errors 11 | . . . . . . . . . 2 3 4 . . . . . 2 Matter Fused 10 | . . . . . 1 . . . 3 2 1 1 . . . 1 1 Heat Flow Errors 6 | . . . . . . . . . . 2 2 . . . . 1 1 Energy Discharges 7 | . . . . . 1 . . . . 3 3 . . . . . . Data Loss (minor) 5 | . . . . . . . . . . 3 1 . . . . 1 . Alerts 2 | . . . . . . . . . . . 1 . . . . 1 . Overload Shots . | . . . . . . . . . . . . . . . . . . Overflow Damage 778 | . . . . 11 1 . . . . 300 37 . . 36 59 89 245 Projectiles . | . . . . . . . . . . . . . . . . . . Explosions 121 | . . . . 11 1 . . . . . . . . . . . 109 Melee 657 | . . . . . . . . . . 300 37 . . 36 59 89 136 Knockbacks . | . . . . . . . . . . . . . . . . . . Impact . | . . . . . . . . . . . . . . . . . . Kinetic . | . . . . . . . . . . . . . . . . . . Secondary . | . . . . . . . . . . . . . . . . . . Self-Inflicted Damage 525 | . 17 . . 213 169 . . . . . . . . . . . 126 Shots 16 | . 1 . . 6 7 . . . . . . . . . . . 2 Rammed . | . . . . . . . . . . . . . . . . . . Targets Rammed 1 | . . . . 1 . . . . . . . . . . . . . Kicked 1 | . . . . 1 . . . . . . . . . . . . . Crushed . | . . . . . . . . . . . . . . . . . . Highest Temperature 568 | 228 450 405 . 204 568 . . . . 247 143 119 304 90 38 283 156 Average Temperature 78 | 115 196 182 . 59 172 . . . . 130 73 27 96 46 10 36 5 Received Heat Transfer 1035 | . 285 90 . 84 450 . . . . . 9 9 . . 9 27 72 Effects 9 | . 3 1 . . 5 . . . . . . . . . . . . Shutdowns 4 | . 1 1 . . 2 . . . . . . . . . . . . Matter Decay 1 | . 1 . . . . . . . . . . . . . . . . Short Circuit 2 | . 1 . . . 1 . . . . . . . . . . . . Damage (minor) 1 | . . . . . 1 . . . . . . . . . . . . Damage (major) 1 | . . . . . 1 . . . . . . . . . . . . Siege Activations . | . . . . . . . . . . . . . . . . . . Robots Corrupted . | . . . . . . . . . . . . . . . . . . Combat Hostiles . | . . . . . . . . . . . . . . . . . . Parts Fried . | . . . . . . . . . . . . . . . . . . Impact Corruptions . | . . . . . . . . . . . . . . . . . . Robots Melted . | . . . . . . . . . . . . . . . . . . Combat Hostiles . | . . . . . . . . . . . . . . . . . . Parts Melted 7 | 3 1 1 . . 2 . . . . . . . . . . . . Heat Transferred 4447 | 718 1592 533 . 420 1184 . . . . . . . . . . . . Parts Sabotaged . | . . . . . . . . . . . . . . . . . . Parts Stolen . | . . . . . . . . . . . . . . . . . . Parts Stripped . | . . . . . . . . . . . . . . . . . . Power Chain Reactions . | . . . . . . . . . . . . . . . . . . Alert | -11 -10 -10 -10 -9 -8 -7 -7 -6 -5 -5 -5 -5 -4 -4 -3 -2 -1 ------- Run | Yrd Mat Min Exi Min Mat Fac DSF Fac Fac Upp Upp War Pro Fac Res Res Acc Peak Influence 775 | 30 210 116 . 286 375 170 122 78 35 . . . . 182 200 371 775 Initial 170 | . 19 81 . . 71 170 122 63 32 . . . . 94 17 112 166 Average 135 | 9 95 92 . 101 128 170 122 66 24 . . . . 119 70 189 403 Maximum Alert Level 3 | . 1 . . 1 1 . . . . . . . . . 1 1 3 Low Security (%) 83 | 100 98 100 . 92 75 100 100 100 100 . . . . 100 99 64 19 Level 1 12 | . 1 . . 7 24 . . . . . . . . . . 35 26 Level 2 4 | . . . . . . . . . . . . . . . . . 48 Level 3 . | . . . . . . . . . . . . . . . . . 5 Level 4 . | . . . . . . . . . . . . . . . . . . Level 5 . | . . . . . . . . . . . . . . . . . . High Security . | . . . . . . . . . . . . . . . . . . Max Security . | . . . . . . . . . . . . . . . . . . Squads Dispatched 19 | . . . . . 3 . . 1 . . . . . 2 2 . 11 Investigation 3 | . . . . . . . . . . . . . . . 1 . 2 Extermination 3 | . . . . . . . . . . . . . . 1 1 . 1 Reinforcement 9 | . . . . . 3 . . 1 . . . . . 1 . . 4 Assault 1 | . . . . . . . . . . . . . . . . . 1 Garrison 3 | . . . . . . . . . . . . . . . . . 3 Intercept . | . . . . . . . . . . . . . . . . . . Searches Triggered . | . . . . . . . . . . . . . . . . . . Construction Impeded . | . . . . . . . . . . . . . . . . . . Haulers Reinforced . | . . . . . . . . . . . . . . . . . . Active Scanning Responses . | . . . . . . . . . . . . . . . . . . Cargo Convoy Interrupts . | . . . . . . . . . . . . . . . . . . Stealth | -11 -10 -10 -10 -9 -8 -7 -7 -6 -5 -5 -5 -5 -4 -4 -3 -2 -1 --------- Run | Yrd Mat Min Exi Min Mat Fac DSF Fac Fac Upp Upp War Pro Fac Res Res Acc Distress Signals 14 | . 1 . . . 2 . . . . . . . . . 1 8 2 Communications Jammed 49 | . . . . . 15 . . . . . . 1 . . 22 7 4 Distress Signals 25 | . . . . . 15 . . . . . . 1 . . 2 7 . Times Spotted 206 | . 12 6 . 14 21 . 1 2 5 1 19 23 13 3 11 26 49 Peak Tracking Total 16 | . 4 3 . 4 5 . 1 2 5 1 4 7 5 2 5 8 16 Tactical Retreats 36 | . . 1 . 1 1 . . . . . 9 . 5 . 2 7 10 Traps | -11 -10 -10 -10 -9 -8 -7 -7 -6 -5 -5 -5 -5 -4 -4 -3 -2 -1 ------- Run | Yrd Mat Min Exi Min Mat Fac DSF Fac Fac Upp Upp War Pro Fac Res Res Acc Traps Triggered 6 | . 1 . . . . . . . 2 . . . . 2 . . 1 Indirectly . | . . . . . . . . . . . . . . . . . . Trap Hack Attempts . | . . . . . . . . . . . . . . . . . . Triggered . | . . . . . . . . . . . . . . . . . . Disarmed . | . . . . . . . . . . . . . . . . . . Reprogrammed . | . . . . . . . . . . . . . . . . . . Reused . | . . . . . . . . . . . . . . . . . . Traps Extracted . | . . . . . . . . . . . . . . . . . . Installed . | . . . . . . . . . . . . . . . . . . Triggered 7 | . . . . . . . . . . . 2 5 . . . . . Machines | -11 -10 -10 -10 -9 -8 -7 -7 -6 -5 -5 -5 -5 -4 -4 -3 -2 -1 ---------- Run | Yrd Mat Min Exi Min Mat Fac DSF Fac Fac Upp Upp War Pro Fac Res Res Acc Machines Disabled 13 | . . . . 3 6 . . . . 1 . . . . . 1 2 Max in Single Turn 1 | . . . . 1 1 . . . . 1 . . . . . 1 1 Garrison Access 2 | . . . . . . . . . . . . . . . . 1 1 Energy Cycler 2 | . . . . . . . . . . . . . . . . . 2 Machines Repaired . | . . . . . . . . . . . . . . . . . . Machines Dismantled . | . . . . . . . . . . . . . . . . . . Machines Sabotaged . | . . . . . . . . . . . . . . . . . . Overloaded Fab Kills . | . . . . . . . . . . . . . . . . . . Hacking | -11 -10 -10 -10 -9 -8 -7 -7 -6 -5 -5 -5 -5 -4 -4 -3 -2 -1 --------- Run | Yrd Mat Min Exi Min Mat Fac DSF Fac Fac Upp Upp War Pro Fac Res Res Acc Machines Accessed 34 | . 1 . . . 1 1 . . 3 1 . 2 . 11 6 2 6 Terminals 27 | . 1 . . . 1 1 . . 3 . . . . 10 5 2 4 Fabricators 1 | . . . . . . . . . . . . . . 1 . . . Repair Stations . | . . . . . . . . . . . . . . . . . . Recycling Units . | . . . . . . . . . . . . . . . . . . Scanalyzers . | . . . . . . . . . . . . . . . . . . Garrison Access 3 | . . . . . . . . . . . . . . . 1 . 2 Total Hacks 61 | . 1 . . . 1 3 . . 9 1 . 3 . 19 8 4 12 Successful 28 | . 1 . . . 1 1 . . 4 1 . 3 . 9 4 1 3 Failed 32 | . . . . . . 2 . . 4 . . . . 10 4 3 9 Catastrophic 12 | . . . . . . . . . . . . . . 4 2 2 4 Database Lockouts 1 | . . . . . . . . . 1 . . . . . . . . Manual 31 | . . . . . 1 . . . . . . . 1 13 6 4 6 Terminals 50 | . 1 . . . 1 3 . . 9 . . . . 17 7 4 8 Fabricators 2 | . . . . . . . . . . . . . . 2 . . . Repair Stations . | . . . . . . . . . . . . . . . . . . Recycling Units . | . . . . . . . . . . . . . . . . . . Scanalyzers . | . . . . . . . . . . . . . . . . . . Garrison Access 5 | . . . . . . . . . . . . . . . 1 . 4 Terminal Hacks 14 | . 1 . . . . 1 . . 4 1 . 3 . 3 1 . . Record 7 | . . . . . . . . . 2 . . 2 . 3 . . . Prototype ID Bank 1 | . . . . . . . . . 1 . . . . . . . . Open Door 2 | . . . . . . . . . . 1 . 1 . . . . . Open DSF 2 | . . . . . . 1 . . . . . . . . 1 . . Branch Access Points 1 | . . . . . . . . . 1 . . . . . . . . Alert Level 1 | . 1 . . . . . . . . . . . . . . . . Fabricator Hacks 2 | . . . . . . . . . . . . . . 2 . . . Network Status 1 | . . . . . . . . . . . . . . 1 . . . Build 1 | . . . . . . . . . . . . . . 1 . . . Repair Station Hacks . | . . . . . . . . . . . . . . . . . . Recycling Unit Hacks . | . . . . . . . . . . . . . . . . . . Scanalyzer . | . . . . . . . . . . . . . . . . . . Garrison Access Hacks 1 | . . . . . . . . . . . . . . . . . 1 Seal Access 1 | . . . . . . . . . . . . . . . . . 1 Unauthorized Hacks 11 | . . . . . 1 . . . . . . . . 4 3 1 2 Terminals 11 | . . . . . 1 . . . . . . . . 4 3 1 2 Botnet 11 | . . . . . 1 . . . . . . . . 4 3 1 2 Fabricators . | . . . . . . . . . . . . . . . . . . Repair Stations . | . . . . . . . . . . . . . . . . . . Recycling Units . | . . . . . . . . . . . . . . . . . . Scanalyzers . | . . . . . . . . . . . . . . . . . . Garrison Access . | . . . . . . . . . . . . . . . . . . Data Cores Recovered 1 | . . . . . . . . . . . . . . 1 . . . Used . | . . . . . . . . . . . . . . . . . . Hacking Detections 24 | . . . . . . . . . 3 . . . . 7 6 2 6 Full Trace Events 3 | . . . . . . . . . . . . . . . 1 . 2 Feedback Events . | . . . . . . . . . . . . . . . . . . Feedback Blocked . | . . . . . . . . . . . . . . . . . . Robot Schematics Acquired . | . . . . . . . . . . . . . . . . . . Robots Built 1 | . . . . . . . . . . . . . . 1 . . . Authchips . | . . . . . . . . . . . . . . . . . . Time 187 | . . . . . . . . . . . . . . 187 . . . Total Robot Build Rating 7 | . . . . . . . . . . . . . . 7 . . . Part Schematics Acquired . | . . . . . . . . . . . . . . . . . . Parts Built . | . . . . . . . . . . . . . . . . . . Authchips . | . . . . . . . . . . . . . . . . . . Time . | . . . . . . . . . . . . . . . . . . Total Part Build Rating . | . . . . . . . . . . . . . . . . . . Parts Repaired . | . . . . . . . . . . . . . . . . . . Time . | . . . . . . . . . . . . . . . . . . Parts Recycled . | . . . . . . . . . . . . . . . . . . Recycled Matter . | . . . . . . . . . . . . . . . . . . Retrieved Matter . | . . . . . . . . . . . . . . . . . . Retrieved Components . | . . . . . . . . . . . . . . . . . . Parts Scanalyzed . | . . . . . . . . . . . . . . . . . . Part Schematics Acquired . | . . . . . . . . . . . . . . . . . . Parts Damaged . | . . . . . . . . . . . . . . . . . . Bothacking | -11 -10 -10 -10 -9 -8 -7 -7 -6 -5 -5 -5 -5 -4 -4 -3 -2 -1 ------------ Run | Yrd Mat Min Exi Min Mat Fac DSF Fac Fac Upp Upp War Pro Fac Res Res Acc Used RIF Installer . | . . . . . . . . . . . . . . . . . . Robots Hacked . | . . . . . . . . . . . . . . . . . . Non-combat . | . . . . . . . . . . . . . . . . . . Combat . | . . . . . . . . . . . . . . . . . . Robot Hacks Applied . | . . . . . . . . . . . . . . . . . . Relay Couplers Released 1 | . . . . . . . . . . . . . . . . 1 . Machine Destruction 1 | . . . . . . . . . . . . . . . . 1 . Fabnet Peak Effective % . | . . . . . . . . . . . . . . . . . . Robots Rewired . | . . . . . . . . . . . . . . . . . . Allies Hacked . | . . . . . . . . . . . . . . . . . . Hacks Repelled . | . . . . . . . . . . . . . . . . . . Allies | -11 -10 -10 -10 -9 -8 -7 -7 -6 -5 -5 -5 -5 -4 -4 -3 -2 -1 -------- Run | Yrd Mat Min Exi Min Mat Fac DSF Fac Fac Upp Upp War Pro Fac Res Res Acc Total Allies 3 | . . 1 . 1 . . . . . . . . . 1 . . . Largest Group 1 | . . 1 . 1 . . . . . . . . . 1 . . . Highest-Rated Group 33 | . . 31 . 16 . . . . . . . . . 33 . . . Highest-Rated Ally 33 | . . 31 . 16 . . . . . . . . . 33 . . . Total Orders . | . . . . . . . . . . . . . . . . . . Ally Attacks 8 | . . 4 . 4 . . . . . . . . . . . . . Total Damage 73 | . . 21 . 52 . . . . . . . . . . . . . Kills . | . . . . . . . . . . . . . . . . . . Allies Corrupted . | . . . . . . . . . . . . . . . . . . Allies Melted 1 | . . . . . . . . . . . . . . . . 1 . Intel | -11 -10 -10 -10 -9 -8 -7 -7 -6 -5 -5 -5 -5 -4 -4 -3 -2 -1 ------- Run | Yrd Mat Min Exi Min Mat Fac DSF Fac Fac Upp Upp War Pro Fac Res Res Acc Robot Analysis Total . | . . . . . . . . . . . . . . . . . . Derelict Logs Recovered 8 | . . 2 . 2 . . . . . 1 2 . 1 . . . . Drone Launches . | . . . . . . . . . . . . . . . . . . Drone Recoveries . | . . . . . . . . . . . . . . . . . . Exploration | -11 -10 -10 -10 -9 -8 -7 -7 -6 -5 -5 -5 -5 -4 -4 -3 -2 -1 ------------- Run | Yrd Mat Min Exi Min Mat Fac DSF Fac Fac Upp Upp War Pro Fac Res Res Acc Turns Passed 8030 | 94 399 386 241 1282 674 1 11 93 266 351 540 743 331 539 687 882 510 Spaces Moved 11881 | 37 207 285 201 959 310 3 30 220 458 603 1246 1451 591 1025 1107 2065 1083 Core 143 | 7 . . . . 8 . . . . 5 . . . . . . 123 Treads . | . . . . . . . . . . . . . . . . . . Legs 1935 | 30 207 285 201 959 253 . . . . . . . . . . . . Wheels . | . . . . . . . . . . . . . . . . . . Hover 24 | . . . . . . . . . 24 . . . . . . . . Flight 9779 | . . . . . 49 3 30 220 434 598 1246 1451 591 1025 1107 2065 960 Fastest Speed 14 | 50 120 120 120 120 37 37 37 37 37 37 29 14 14 20 29 27 25 Average Speed 46 | 106 120 120 120 120 159 37 37 40 50 37 33 28 18 29 29 27 33 Slowest Speed 260 | 120 120 120 120 190 260 37 37 117 125 100 107 29 23 37 29 108 250 Overloaded Moves 215 | . . . . . . . . . . . 215 . . . . . . Propulsion Burnouts . | . . . . . . . . . . . . . . . . . . Robots Hopped 32 | . . . . . . . . . . . . 1 . 3 7 19 2 Cave-ins Triggered 1 | . . . . . 1 . . . . . . . . . . . . Exploration Rate (%) 48 | 4 44 80 41 100 35 . 41 4 12 72 88 95 82 30 24 41 33 Regions Visited 17 Branch Regions 7 Pre-discovered Areas 2 | . . . . 1 . . . . . . . . 1 . . . . Known Exits Taken 15 | . 1 1 1 1 1 1 . 1 1 1 1 1 1 1 1 1 . Unknown Exits Taken 1 | 1 . . . . . . . . . . . . . . . . . Scrap Searched 13 | . . 3 . 2 . . . . . 2 4 . 2 . . . . Spaces Dug 83 | . . . . . 4 . . . . 1 9 . 6 3 21 18 21 Terrain Destroyed 640 | . 18 . . 256 102 . . . . 1 9 . 6 3 21 62 162 Melee 79 | . . . . . . . . . . 1 9 . 6 3 21 18 21 Projectile 16 | . . . . . 16 . . . . . . . . . . . . AOE 545 | . 18 . . 256 86 . . . . . . . . . . 44 141 Terrain Rammed . | . . . . . . . . . . . . . . . . . . Walls Destroyed . | . . . . . . . . . . . . . . . . . . Machines Disabled . | . . . . . . . . . . . . . . . . . . Actions | -11 -10 -10 -10 -9 -8 -7 -7 -6 -5 -5 -5 -5 -4 -4 -3 -2 -1 --------- Run | Yrd Mat Min Exi Min Mat Fac DSF Fac Fac Upp Upp War Pro Fac Res Res Acc Total 13711 | 58 290 307 200 1034 419 2 29 225 487 704 1325 1778 800 1232 1422 2230 1169 Wait 1249 | . 25 7 . 22 30 . . . 14 76 40 304 186 166 285 68 26 Move 11813 | 36 206 284 200 958 309 2 29 219 457 602 1245 1448 590 1018 1095 2036 1079 Hop 19 | . . . . . . . . . . . . 1 . 3 4 9 2 Pick Up 52 | 1 10 2 . 6 6 . . . 1 3 1 2 2 7 2 8 1 Fast Attach 79 | 6 1 . . 1 7 . . 2 9 3 8 10 2 11 1 11 7 Attach 46 | . 5 . . 2 10 . . . 1 2 . 2 5 2 4 6 7 Detach 13 | . . . . . . . . 3 2 . 1 2 1 . 2 1 1 Swap 20 | . 2 1 . 8 4 . . . . . 1 . . 1 . 3 . Drop 69 | . 2 2 . 4 13 . . 1 2 3 3 7 5 9 1 10 7 Fire 149 | 15 39 11 . 32 40 . . . . . . . 2 . . 3 7 Melee 201 | . . . . . . . . . 1 15 26 2 7 15 28 75 32 Ram . | . . . . . . . . . . . . . . . . . . Kick 1 | . . . . 1 . . . . . . . . . . . . . Crush . | . . . . . . . . . . . . . . . . . . Escape Stasis . | . . . . . . . . . . . . . . . . . . Rewire . | . . . . . . . . . . . . . . . . . . Trap . | . . . . . . . . . . . . . . . . . . Miscellaneous . | . . . . . . . . . . . . . . . . . . Route ------- -11/Scrapyard -10/Materials -10/Mines (discovered 2 exits: *Mat / *Exi) -10/Exiles -9/Mines (discovered 2 exits: *Mat x2) -8/Materials -7/Factory -7/DSF -6/Factory -5/Factory (discovered 2 exits: *Upp x2) -5/Upper Caves -5/Upper Caves (discovered 2 exits: *Fac / *War) -5/Warlord -4/Proximity Caves -4/Factory -3/Research -2/Research -1/Access History --------- Turn | Location | Event 24 | -11/Scrapyard | Discovered new exit (range 15) 95 | -11/Scrapyard | Entered Materials 302 | -10/Materials | Discovered new exit (range 15) 307 | -10/Materials | Build established: Mutant 433 | -10/Materials | Lost 3 parts (1p1n1w) 482 | -10/Materials | Identified exit to Mines 494 | -10/Materials | Entered Mines 497 | -10/Mines | Received a Mining Laser from a helpful Derelict 533 | -10/Mines | Learned Materials emergency access door positions 643 | -10/Mines | Learned Materials trap positions 727 | -10/Mines | Discovered new exit (range 16) 739 | -10/Mines | YI-UF0 nonchalantly dropped a Grenade Launcher on the ground 744 | -10/Mines | Identified exit to Materials 875 | -10/Mines | Deemed a non-threat by the Exiles lab entrance 875 | -10/Mines | Discovered new exit (range 5) 879 | -10/Mines | Identified exit to Exiles 880 | -10/Mines | Entered Exiles 880 | -10/Exiles | Found Exiles lab abandoned 1107 | -10/Exiles | Discovered new exit (range 14) 1119 | -10/Exiles | Identified exit to Mines 1121 | -10/Exiles | Entered Mines 1132 | -9/Mines | Received a Rocket Launcher from a helpful Derelict 1156 | -9/Mines | Discovered new exit (range 14) 1166 | -9/Mines | Core integrity fell below 50% 1190 | -9/Mines | Identified exit to Materials 1263 | -9/Mines | Learned location of Storage (-7) 1265 | -9/Mines | Learned Materials security intel 1313 | -9/Mines | Discovered exit to Materials (range 13) 1435 | -9/Mines | Learned 4 Materials zone layouts 1913 | -9/Mines | Assisted by bots powering up and referring to "LRC-V3" 1950 | -9/Mines | Build established: Scavenger-Mutant 2171 | -9/Mines | Core integrity fell below 20% 2403 | -9/Mines | Entered Materials 2403 | -8/Materials | Evolved 4 slots: Utility x4 2404 | -8/Materials | Identified exit to Factory 2405 | -8/Materials | Loaded intel: 23 trap records 3025 | -8/Materials | Crushed by falling debris 3025 | -8/Materials | System corruption reached 10% 3056 | -8/Materials | Lost 4 parts (1n2u1w) 3077 | -8/Materials | Entered Factory 3077 | -7/Factory | Evolved 2 slots: Propulsion x2 3078 | -7/Factory | Identified exit to DSF 3078 | -7/Factory | Entered DSF 3085 | -7/DSF | Discovered new exit (range 11) 3089 | -7/DSF | Identified exit to Factory 3089 | -7/DSF | Entered Factory 3089 | -6/Factory | Evolved 2 slots: Propulsion x2 3173 | -6/Factory | Discovered new exit (range 12) 3182 | -6/Factory | Identified exit to Factory 3182 | -6/Factory | Entered another Factory area 3182 | -5/Factory | Evolved 2 slots: Propulsion x2 3272 | -5/Factory | Identified exit to Upper Caves 3296 | -5/Factory | Lost 3 parts (1p1n1u) 3401 | -5/Factory | Central database locked down 3448 | -5/Factory | Entered Upper Caves 3573 | -5/Upper Caves | Build established: Mutant 3659 | -5/Upper Caves | Learned Factory emergency access door positions 3676 | -5/Upper Caves | Attacked by a delusional Derelict stockpiling parts 3762 | -5/Upper Caves | Discovered new exit (range 9) 3770 | -5/Upper Caves | Identified exit to Upper Caves 3799 | -5/Upper Caves | Entered another Upper Caves area 3809 | -5/Upper Caves | Discovered new exit (range 10) 3814 | -5/Upper Caves | Identified exit to Factory 3874 | -5/Upper Caves | Learned Factory terminal intel 3915 | -5/Upper Caves | Spotted B-75 Beast 4023 | -5/Upper Caves | Lost 5 parts (1p3n1u) 4037 | -5/Upper Caves | Learned Factory stockpile data 4213 | -5/Upper Caves | Attracted the attention of an 0b10 checkpoint 4261 | -5/Upper Caves | Build established: Sprinter 4332 | -5/Upper Caves | Discovered new exit (range 16) 4339 | -5/Upper Caves | Identified exit to Warlord 4339 | -5/Upper Caves | Entered Warlord 4362 | -5/Warlord | Discovered new exit (range 12) 4364 | -5/Warlord | Identified exit to Proximity Caves 4394 | -5/Warlord | System corruption cleaned by Quarantine Array 4604 | -5/Warlord | Warlord's base attacked by MAIN.C 4612 | -5/Warlord | Build established: Derelict-Sprinter 4691 | -5/Warlord | P-70 Sage assimilated allied I1-9QM(Y) 4759 | -5/Warlord | Lost 3 allies 4862 | -5/Warlord | Met Warlord 4917 | -5/Warlord | Met EX-DEC 4920 | -5/Warlord | Found Prototype Launcher 4920 | -5/Warlord | Identified Vortex Catalyst Activator 4954 | -5/Warlord | Warlord forces counterattacked 4978 | -5/Warlord | Spotted Striker 5045 | -5/Warlord | Spotted Executioner 5049 | -5/Warlord | Spotted Striker 5082 | -5/Warlord | Entered Proximity Caves 5085 | -4/Proximity Caves | Spotted B-86 Titan 5086 | -4/Proximity Caves | Lost 6 allies 5333 | -4/Proximity Caves | Build established: Scavenger-Sprinter 5380 | -4/Proximity Caves | Learned location of Quarantine (-2) 5387 | -4/Proximity Caves | Acquired the password to a Derelict Tinkerer's latest research 5390 | -4/Proximity Caves | Found Prototype Special Weapon 5390 | -4/Proximity Caves | Identified Molecular Deconstructor 5412 | -4/Proximity Caves | Discovered exit to Factory (range 3) 5413 | -4/Proximity Caves | Entered Factory 5413 | -4/Factory | Evolved 2 slots: Utility x2 5416 | -4/Factory | Loaded intel: 24 terminal locations 5697 | -4/Factory | Fabricated M-30 Cleanser? 5816 | -4/Factory | Build established: Scavenger-Ninja 5834 | -4/Factory | Spotted B-86 Titan 5919 | -4/Factory | Discovered new exit (range 9) 5922 | -4/Factory | Identified exit to Research 5952 | -4/Factory | Entered Research 5952 | -3/Research | Evolved 2 slots: Power x1, Utility x1 5983 | -3/Research | Identified exit to DSF 6165 | -3/Research | Build established: Ninja 6622 | -3/Research | Discovered new exit (range 6) 6639 | -3/Research | Identified exit to Research 6639 | -3/Research | Entered another Research area 6639 | -2/Research | Warlord forces began assault on 0b10 6639 | -2/Research | Evolved 2 slots: Utility x2 6743 | -2/Research | Spotted B-90 Cyclops 6749 | -2/Research | Research machine network offline 6801 | -2/Research | Spotted B-90 Cyclops 6900 | -2/Research | Borebot progress halted 7056 | -2/Research | Found Fusion Bomb Launcher 7102 | -2/Research | Discovered new exit (range 3) 7102 | -2/Research | Identified exit to Access 7149 | -2/Research | Spotted B-90 Cyclops 7346 | -2/Research | Borebot progress halted 7361 | -2/Research | Spotted Striker 7376 | -2/Research | Spotted Executioner 7389 | -2/Research | Spotted Striker 7391 | -2/Research | Spotted Executioner 7392 | -2/Research | Spotted Executioner 7471 | -2/Research | Lost 3 parts (1p2u) 7521 | -2/Research | Entered Access 7521 | -1/Access | Evolved 2 slots: Utility x1, Weapon x1 7547 | -1/Access | Garrison activated, responded to threat 7720 | -1/Access | Found Prototype Device 7720 | -1/Access | Identified Adv. Kinecellerator 7758 | -1/Access | Energy Cycler disabled 7764 | -1/Access | Lost 4 parts (2p2u) 7847 | -1/Access | Lost 10 parts (5n5u) 7926 | -1/Access | Spotted B-99 Colossus 7928 | -1/Access | Core integrity fell below 50% 7947 | -1/Access | Spotted B-99 Colossus 7998 | -1/Access | Core integrity fell below 20% 8021 | -1/Access | First assault squad dispatched 8031 | -1/Access | Destroyed by S-43 Plague with Heavy Machine Gun Last Messages --------------- 07963_ Plasma Lance destroyed. 07993_ Lrn. Sensor Array destroyed. 07993_ Destroyed Lrn. Sensor Array. 07993_ Micro-nuke Launcher destroyed. 07993_ Destroyed Micro-nuke Launcher. 07993_ S-43 Plague destroyed. 07995_ Acquired 26 matter. 07996_ Acquired 24 matter. 07997_ Acquired 14 matter. 07999_ System corrupted: Matter fused (-6). 08004_ S-43 Plague destroyed. 08004_ Destroyed Xenon Bombardment Thruster. 08005_ The unstable cave ceiling collapses. 08007_ Fusion Bomb Launcher destroyed. 08008_ The unstable cave ceiling collapses. 08013_ Triggered Segregator Trap. 08013_ Arcs of energy rise from the floor. 08013_ Imp. Melee Analysis Suite blown off. 08021_ ALERT: Significant disruption in Zone 4W, assault force dispatched. Map ----- +----------------------------------------------------+ | | | | | | | | | | | | | | | | | | | | | | | | | | | | | | | ?????????????????????????????????????????????????? | | ?????????????????????????????????????????????????? | | ?????????????????????????????????????????????????? | | ?????????????????????????????????????????????????? | | ?????????????????????????????????????????????????? | | #######################################??????????? | | ?????????? | | k ?????????? | | ????????? | | k s s s ????????? | | @ s w ????????? | | ######+#############+#############???????????????? | | ???? ?????????= ??????????????????????????? | | ??# ! ?????# ????????????????????????? | | ??# #????# " #???????????????????????? | | ??# " #????#""" #???????????????????????? | | ??# """ #????# """ #???????????????????????? | | ??# """ !#????# " #???????????????????????? | | ??# " #????#% #???????????????????????? | | ??# = #????# #???????????????????????? | | ??# #????# #???????????????????????? | | ??####?#?###?????#?#######???????????????????????? | | ?????????????????????????????????????????????????? | | ?????????????????????????????????????????????????? | | ?????????????????????????????????????????????????? | | ?????????????????????????????????????????????????? | | ?????????????????????????????????????????????????? | | ?????????????????????????????????????????????????? | | ?????????????????????????????????????????????????? | | ?????????????????????????????????????????????????? | | ?????????????????????????????????????????????????? | | ?????????????????????????????????????????????????? | | ?????????????????????????????????????????????????? | | ?????????????????????????????????????????????????? | | ?????????????????????????????????????????????????? | +----------------------------------------------------+ Best States ------------- Heat Dissipation 52 Energy Generation 73 Energy Capacity 390 Matter Stores 300 Matter Capacity 300 Sight Range 20 Robot Scan Range 18 Terrain Scan Density 210 Jamming Range 16 Cloak Strength 4 Power Amplification 100 Additional Mass Support 9 Armor Coverage 225 Core Shielding 20 Phase Shifting 15 Evasion (%) 91 Melee Accuracy 12 Energy Filtering 30 Salvage Targeting 4 Offensive Hacking 10 Item Schematics ----------------- None Robot Schematics ------------------ None Fabricated ------------ M-30 Cleanser | x1 | -4/Factory | Preloaded Alien Tech Used ----------------- None Achievements -------------- A Powerful Ally? Charge!!! Deadly Force Dramatic Entrance Knowing Is Half The Battle Challenges ------------ None Game ------ Seed CommTerrainTreads Manual? 0 Play Time 02:24:17 Cumulative 33.6 hours Start 2024.04.28 @ 19:20:32 End 2024.04.28 @ 22:02:28 Sessions 1 Manual Loads 0 Difficulty Rogue Special Mode None Game No. 42 Rogue 42 Adventurer 0 Explorer 0 Win Type - Total 1 Types 1/0/0/0/0/0/0/0/0 Lore% 31 Gallery% 38 Achievement% 32 Wizard Run 0 Options --------- Layout 1 ASCII 0 Keyboard 0 Movement Mouse Keybinds 0 Fullscreen 1 Font 24/Smallcaps Map View 50x35 Zoom Use 0% Tactical HUD 1 Map Filters NONE Filters NONE Steam 1 RUN: 0a437d37-fd4f-4402-840e-592c05f2c845